bitfinex-derivatives/quotes_SOLF0:USTF0_20250224
["timestamp","ask_amount","ask_price","bid_price","bid_amount"]
[1740380942850,6.1984,161.32,161.28,6.1995]
[1740380943153,24.95993607,161.34,161.28,6.1995]
[1740380943350,24.95993607,161.34,161.27,1.8674]
[1740380943551,0.04685191,161.33,161.29,0.04207365]
[1740380944055,6.1987,161.31,161.29,0.04207365]
[1740380946654,0.04685191,161.33,161.29,0.04207365]
[1740380947054,0.04685191,161.33,161.32,6.1981]
[1740380947254,0.04685191,161.33,161.29,0.04207365]
[1740380947959,24.95993607,161.4,161.29,16.66200972]
[1740380948258,6.196,161.38,161.35,6.1967]
[1740380949058,16.61993607,161.4,161.35,0.04094616]
[1740380949759,6.1959,161.38,161.35,6.23764616]
[1740380950258,16.61993607,161.4,161.35,6.23764616]
[1740380950259,16.61993607,161.4,161.35,0.04094616]
[1740380950561,16.61993607,161.42,161.35,0.04094616]
[1740380950757,16.61993607,161.4,161.35,0.04094616]
[1740380951662,6.1956,161.39,161.35,6.23784616]
[1740380951857,6.1956,161.39,161.35,0.04094616]
[1740380952163,16.61993607,161.42,161.35,0.04094616]
[1740380952358,16.61993607,161.42,161.37,6.1959]
[1740380952559,16.61993607,161.42,161.35,0.04094616]
[1740380952761,6.1949,161.41,161.37,6.1961]
[1740380953363,6.1954,161.39,161.36,6.1964]
[1740380953862,16.61993607,161.42,161.35,0.04094616]
[1740380955859,6.1952,161.4,161.35,0.04094616]
[1740380956064,16.61993607,161.42,161.35,0.04094616]
[1740380956460,6.1951,161.4,161.37,6.1959]
[1740380956661,16.61993607,161.42,161.35,0.04094616]
[1740380957962,16.61993607,161.42,161.37,6.1961]
[1740380958153,16.61993607,161.42,161.35,0.04094616]
[1740380958558,6.1948,161.41,161.35,0.04094616]
[1740380959063,8.34,161.43,161.35,0.04094616]
[1740380959259,6.1945,161.42,161.39,6.1951]
[1740380959469,6.1945,161.42,161.33,20.55033607]
[1740380959659,84.8185003,161.44,161.39,0.04703212]
[1740380959863,84.8185003,161.44,161.4,6.1948]
[1740380960062,84.8185003,161.44,161.39,0.04703212]
[1740380960258,84.8185003,161.44,161.39,6.24223212]
[1740380960259,6.1944,161.42,161.39,6.24223212]
[1740380960763,6.1944,161.42,161.4,6.1949]
[1740380960964,6.194,161.43,161.4,6.1949]
[1740380961369,84.8185003,161.46,161.39,6.24213212]
[1740380961565,6.1945,161.42,161.39,6.24213212]
[1740380962068,84.8185003,161.46,161.39,0.04703212]
[1740380963265,6.1935,161.44,161.41,6.1944]
[1740380963668,10.61361075,161.44,161.39,0.04703212]
[1740380964366,6.194,161.43,161.4,6.195]
[1740380964566,10.61361075,161.44,161.4,6.195]
[1740380965770,6.1941,161.43,161.4,6.195]
[1740380966266,6.1944,161.42,161.39,0.04703212]
[1740380966568,10.61361075,161.42,161.39,0.04703212]
[1740380967367,6.195,161.41,161.39,0.04703212]
[1740380969364,6.195,161.4,161.39,0.04703212]
[1740380970763,16.80861075,161.4,161.39,0.04703212]
[1740380971470,25.14861075,161.4,161.39,0.04703212]
[1740380973668,18.95361075,161.4,161.34,6.1972]
[1740380973871,10.61361075,161.36,161.33,1.9518]
[1740380974175,8.34,161.4,161.22,354.26]
[1740380974176,10.61361075,161.34,161.28,1.8735]
[1740380974474,8.34,161.4,161.28,1.8735]
[1740380974475,10.61361075,161.32,161.28,1.8735]
[1740380974770,10.61361075,161.3,161.28,1.8735]
[1740380974969,10.61361075,161.3,161.28,0.04210242]
[1740380975779,6.1986,161.31,161.28,0.04210242]
[1740380978577,16.61276094,161.3,161.23,1.8102]
[1740380978880,16.61276094,161.25,161.19,1.9461]
[1740380979172,16.61276094,161.27,161.19,1.9461]
[1740380979778,0.04273089,161.25,161.21,0.04667769]
[1740380980278,0.04273089,161.25,161.21,6.24867769]
[1740380980672,0.04273089,161.25,161.21,0.04667769]
[1740380981271,0.04273089,161.25,161.21,1.84267769]
[1740380981471,6.199,161.3,161.26,6.2004]
[1740380982568,6.24381034,161.3,161.26,6.24430203]
[1740380982973,0.04481034,161.3,161.26,6.24430203]
[1740380983279,6.1992,161.29,161.26,6.24430203]
[1740380983982,0.04481034,161.3,161.26,0.04390203]
[1740380984172,0.04481034,161.3,161.29,6.1992]
[1740380985378,6.1974,161.34,161.27,1.8578]
[1740380985677,6.1974,161.34,161.31,6.1984]
[1740380986278,6.1973,161.35,161.27,3.6829]
[1740380986476,16.61276094,161.36,161.27,3.6829]
[1740380986676,16.61276094,161.36,161.29,0.0427101]
[1740380987481,6.1975,161.34,161.31,6.1984]
[1740380987678,16.61276094,161.36,161.29,0.0427101]
[1740380987878,16.61276094,161.36,161.31,6.1982]
[1740380987879,6.1975,161.34,161.31,6.1982]
[1740380988280,6.1975,161.34,161.29,0.0427101]
[1740380988483,6.1975,161.34,161.31,6.1983]
[1740380989983,6.1975,161.34,161.3,6.1986]
[1740380990378,6.1975,161.34,161.29,0.0427101]
[1740380990583,16.61276094,161.36,161.3,6.1987]
[1740380990787,6.1978,161.33,161.3,6.1987]
[1740380991285,16.61276094,161.36,161.29,0.0427101]
[1740380991879,16.61276094,161.32,161.29,0.0427101]
[1740380992277,6.1988,161.3,161.29,0.0427101]
[1740380992484,22.81156094,161.3,161.29,0.0427101]
[1740380993483,16.61276094,161.3,161.21,3.7227]
[1740380993787,16.61276094,161.28,161.21,3.7227]
[1740380994190,6.2008,161.25,161.21,9.9248]
[1740380994688,6.24007317,161.25,161.21,9.97195066]
[1740380994990,6.24007317,161.25,161.21,3.76985066]
[1740380995191,6.24007317,161.25,161.22,6.2019]
[1740380995392,0.03927317,161.25,161.22,6.2019]
[1740380995583,0.03927317,161.25,161.21,9.97195066]
[1740380995789,6.24007317,161.25,161.21,9.97195066]
[1740380995990,6.24007317,161.25,161.21,3.76985066]
[1740380996492,0.03927317,161.25,161.22,6.2019]
[1740380997291,0.03927317,161.25,161.21,3.76985066]
[1740380997486,22.81466094,161.22,161.21,0.04715066]
[1740380997692,16.61276094,161.22,161.21,0.04715066]
[1740380998091,22.81466094,161.22,161.21,0.04715066]
[1740380998686,16.61276094,161.24,161.21,0.04715066]
[1740380998892,0.03927317,161.25,161.21,0.04715066]
[1740380999694,0.03927317,161.25,161.21,6.24935066]
[1740380999892,0.03927317,161.25,161.21,0.04715066]
[1740381000096,0.03927317,161.25,161.22,6.2018]
[1740381000299,0.03927317,161.25,161.21,0.04715066]
[1740381000601,0.03927317,161.25,161.23,6.2013]
[1740381000799,0.03927317,161.25,161.21,0.04715066]
[1740381001003,8.34,161.3,161.21,0.04715066]
[1740381001004,24.95276094,161.3,161.21,0.04715066]
[1740381001203,24.95276094,161.3,161.25,6.2007]
[1740381001204,6.1998,161.28,161.25,6.2007]
[1740381001404,24.95276094,161.3,161.22,1.9567]
[1740381001804,24.95276094,161.3,161.24,6.201]
[1740381001999,16.61276094,161.28,161.25,0.04025266]
[1740381002505,6.2004,161.26,161.25,0.04025266]
[1740381005910,0.02058598,161.29,161.26,6.2003]
[1740381006211,0.02058598,161.29,161.25,0.04025266]
[1740381006402,0.02058598,161.29,161.28,6.1996]
[1740381007811,0.02058598,161.29,161.26,1.8477]
[1740381008209,0.02058598,161.29,161.25,0.04025266]
[1740381008508,0.02058598,161.29,161.25,6.24085266]
[1740381008708,6.21988598,161.29,161.25,6.24085266]
[1740381010806,0.02058598,161.29,161.25,0.04025266]
[1740381011610,0.02058598,161.29,161.28,6.1996]
[1740381013010,0.02058598,161.29,161.27,6.1998]
[1740381013412,16.61276094,161.34,161.25,0.04025266]
[1740381013810,16.61276094,161.34,161.29,6.1991]
[1740381014413,84.81132517,161.36,161.3,6.1986]
[1740381014913,6.1977,161.34,161.31,6.1983]
[1740381015113,6.1977,161.34,161.31,6.24577354]
[1740381015914,6.1978,161.33,161.31,0.04747354]
[1740381017106,22.81086094,161.32,161.31,0.04747354]
[1740381018712,16.61276094,161.32,161.22,1.8477]
[1740381019017,16.61276094,161.29,161.24,6.2009]
[1740381019318,6.1999,161.28,161.24,6.2009]
[1740381019719,6.24430563,161.28,161.24,6.24271076]
[1740381020217,0.04440563,161.28,161.25,6.2007]
[1740381021119,0.04440563,161.28,161.26,6.2003]
[1740381021815,0.04440563,161.28,161.24,0.04181076]
[1740381022115,16.61276094,161.27,161.24,0.04181076]
[1740381023118,6.2008,161.25,161.24,0.04181076]
[1740381023819,16.61276094,161.27,161.24,0.04181076]
[1740381024722,16.61276094,161.25,161.24,0.04181076]
[1740381025323,22.81356094,161.25,161.24,0.04181076]
[1740381025822,22.81356094,161.25,161.18,1.9012]
[1740381025823,16.61276094,161.25,161.18,1.9012]
[1740381026024,6.2012,161.24,161.18,1.9012]
[1740381026517,16.61276094,161.25,161.18,1.9012]
[1740381026817,16.61276094,161.25,161.2,0.04259269]
[1740381027020,6.24144227,161.23,161.2,6.24519269]
[1740381028012,0.03964227,161.23,161.21,6.2023]
[1740381028218,0.03964227,161.23,161.2,0.04259269]
[1740381028730,6.24144227,161.23,161.2,6.24509269]
[1740381030121,0.03964227,161.23,161.2,0.04259269]
[1740381030322,6.2021,161.22,161.2,0.04259269]
[1740381031526,6.2023,161.21,161.2,0.04259269]
[1740381031826,22.81506094,161.21,161.2,0.04259269]
[1740381032325,16.61276094,161.21,161.14,1.8459]
[1740381032529,6.2036,161.18,161.12,164.0578]
[1740381032920,6.205,161.15,161.12,164.0578]
[1740381033216,16.61276094,161.17,161.12,1.7978]
[1740381033727,6.2048,161.15,161.13,0.04046537]
[1740381033922,16.61276094,161.15,161.13,0.04046537]
[1740381034118,16.61276094,161.15,161.05,16.61276094]
[1740381034322,16.61276094,161.15,161.01,65.87929607]
[1740381034323,16.61276094,161.11,161.04,65.92038811]
[1740381034520,16.61276094,161.11,161.04,59.71168811]
[1740381035025,16.61276094,161.11,161.07,6.2076]
[1740381035422,16.65640086,161.11,161.07,6.25270152]
[1740381035825,16.65640086,161.11,161.08,6.207]
[1740381036121,16.65640086,161.11,161.07,0.04510152]
[1740381036122,0.04363992,161.11,161.07,0.04510152]
[1740381036326,8.34,161.14,161.12,6.2056]
[1740381036723,8.34,161.14,161.08,1.9786]
[1740381036929,8.34,161.14,161.09,1.9475]
[1740381037126,22.81666094,161.17,161.09,1.9475]
[1740381037330,16.61276094,161.17,161.09,1.9475]
[1740381037629,0.04551097,161.15,161.11,0.0441306]
[1740381038329,0.04551097,161.15,161.12,6.2057]
[1740381040024,0.04551097,161.15,161.11,0.0441306]
[1740381040730,16.61276094,161.21,161.11,16.65689154]
[1740381040928,16.61276094,161.21,161.11,16.61276094]
[1740381041729,0.04051422,161.18,161.14,0.03944617]
[1740381042427,0.04051422,161.18,161.17,6.2037]
[1740381044939,6.2039,161.17,161.14,6.24434617]
[1740381047139,6.2042,161.16,161.14,0.03944617]
[1740381047539,0.04051422,161.18,161.14,0.03944617]
[1740381047837,6.24401422,161.18,161.14,0.03944617]
[1740381048337,0.04051422,161.18,161.14,0.03944617]
[1740381048637,0.04051422,161.18,161.15,6.2043]
[1740381049637,6.24401422,161.18,161.15,6.2043]
[1740381051340,0.04051422,161.18,161.16,6.204]
[1740381056342,0.04051422,161.18,161.14,0.03944617]
[1740381057146,0.04051422,161.18,161.17,6.2038]
[1740381058145,0.04051422,161.18,161.16,6.2041]
[1740381059345,0.04051422,161.18,161.14,0.03944617]
[1740381059552,6.24421422,161.18,161.15,6.2044]
[1740381060248,0.04051422,161.18,161.15,6.2044]
[1740381060446,16.61276094,161.17,161.14,0.03944617]
[1740381061141,6.2043,161.16,161.14,0.03944617]
[1740381061338,16.61276094,161.15,161.14,0.03944617]
[1740381061539,6.2057,161.13,161.09,8.1543]
[1740381061749,16.61276094,161.12,161.09,8.1543]
[1740381062052,22.81856094,161.12,161.09,8.1543]
[1740381062248,22.81856094,161.12,161.09,1.9475]
[1740381062740,16.65610384,161.12,161.09,1.98813706]
[1740381062944,6.2063,161.11,161.09,1.98813706]
[1740381063143,16.61276094,161.1,161.09,0.04063706]
[1740381063345,22.81926094,161.1,161.09,0.04063706]
[1740381063648,16.61276094,161.1,161.09,0.04063706]
[1740381064049,22.81926094,161.1,161.09,0.04063706]
[1740381066150,16.65610384,161.12,161.09,0.04063706]
[1740381066646,22.86210384,161.12,161.09,0.04063706]
[1740381067250,16.65610384,161.12,161.09,0.04063706]
[1740381067550,6.2063,161.11,161.09,0.04063706]
[1740381068150,16.65610384,161.12,161.09,0.04063706]
[1740381068549,16.65610384,161.12,161.09,6.24733706]
[1740381068849,16.65610384,161.12,161.09,0.04063706]
[1740381070151,16.65610384,161.12,161.09,6.24733706]
[1740381070152,22.86210384,161.12,161.09,6.24733706]
[1740381071151,16.65610384,161.12,161.1,6.2065]
[1740381071354,83.26501581,161.19,161.09,16.653398]
[1740381071555,83.26501581,161.19,161.1,1.8694]
[1740381071748,83.26501581,161.19,161.11,16.61276094]
[1740381071954,83.26501581,161.19,161.15,16.61276094]
[1740381072156,80.29261581,161.19,161.16,1.8694]
[1740381072350,80.29261581,161.19,161.18,6.2034]
[1740381072556,80.33248045,161.19,161.18,6.2034]
[1740381073351,80.33248045,161.19,161.17,6.2035]
[1740381073554,0.03986464,161.19,161.17,6.2035]
[1740381074656,0.03986464,161.19,161.16,8.11319141]
[1740381074954,16.61276094,161.17,161.16,0.03969141]
[1740381075858,24.99262558,161.19,161.16,0.03969141]
[1740381076158,8.37986464,161.19,161.16,0.03969141]
[1740381076354,0.03986464,161.19,161.17,6.2035]
[1740381076555,0.03986464,161.19,161.16,0.03969141]
[1740381076957,6.2035,161.18,161.16,0.03969141]
[1740381077158,16.65262558,161.19,161.16,0.03969141]
[1740381077554,6.2038,161.17,161.16,0.03969141]
[1740381077752,16.65262558,161.19,161.16,0.03969141]
[1740381078153,22.85602558,161.19,161.16,0.03969141]
[1740381079155,6.24326464,161.19,161.16,0.03969141]
[1740381081962,0.03986464,161.19,161.17,6.2036]
[1740381083766,0.03986464,161.19,161.16,0.03969141]
[1740381084063,0.03986464,161.19,161.18,6.2034]
[1740381084653,8.34,161.24,161.21,6.2022]
[1740381084654,6.2013,161.24,161.21,6.2022]
[1740381084964,6.2013,161.24,161.16,16.61276094]
[1740381085362,47.54733729,161.27,161.15,3.6859]
[1740381085363,74.39916423,161.26,161.23,6.2015]
[1740381085866,74.43859433,161.26,161.23,6.2459875]
[1740381086363,6.2400301,161.26,161.23,6.2459875]
[1740381088867,0.0394301,161.26,161.25,6.2008]
[1740381091465,8.34,161.32,161.27,6.1996]
[1740381091770,6.1991,161.3,161.22,18.40136094]
[1740381092263,24.95276094,161.33,161.28,6.1996]
[1740381092463,6.1986,161.31,161.28,6.1996]
[1740381092669,6.1986,161.31,161.29,0.04435311]
[1740381094269,6.1982,161.32,161.29,0.04435311]
[1740381094466,24.95276094,161.33,161.29,6.24315311]
[1740381094665,16.61276094,161.33,161.29,6.24315311]
[1740381095168,22.81056094,161.33,161.29,6.24315311]
[1740381095759,16.61276094,161.31,161.29,0.04435311]
[1740381097464,6.1988,161.3,161.29,0.04435311]
[1740381097967,1.10225022,161.3,161.22,1.7886]
[1740381098167,16.61276094,161.26,161.22,1.7886]
[1740381098972,16.656075,161.26,161.22,1.83043841]
[1740381099472,6.2012,161.24,161.22,0.04183841]
[1740381099769,24.95276094,161.24,161.22,0.04183841]
[1740381099969,24.95276094,161.24,161.14,3.7202]
[1740381100270,16.61276094,161.21,161.14,3.7202]
[1740381101065,0.03978153,161.19,161.16,0.04531604]
[1740381101973,6.24318153,161.19,161.16,0.04531604]
[1740381102773,22.85594247,161.19,161.16,0.04531604]
[1740381103071,16.65254247,161.19,161.16,6.24941604]
[1740381103874,0.03978153,161.19,161.18,6.2034]
[1740381105475,0.03978153,161.19,161.17,6.2037]
[1740381106077,0.03978153,161.19,161.16,0.04531604]
[1740381106876,0.03978153,161.19,161.17,6.2036]
[1740381111083,0.03978153,161.19,161.17,6.2038]
[1740381112069,16.61276094,161.23,161.16,0.04531604]
[1740381112274,8.34,161.25,161.15,1.8453]
[1740381112471,6.2014,161.24,161.15,1.8453]
[1740381113381,0.04343688,161.21,161.18,0.04130206]
[1740381113771,0.04343688,161.21,161.2,6.2027]
[1740381114878,3.688e-05,161.21,161.2,6.2027]
[1740381115073,3.688e-05,161.21,161.18,6.24470206]
[1740381115278,3.688e-05,161.21,161.18,0.04130206]
[1740381115480,6.203,161.2,161.18,0.04130206]
[1740381115681,3.688e-05,161.21,161.18,0.04130206]
[1740381115880,16.61276094,161.2,161.18,0.04130206]
[1740381116585,6.2031,161.19,161.18,0.04130206]
[1740381116785,16.61276094,161.2,161.08,3.776]
[1740381116981,6.2055,161.13,161.1,6.2063]
[1740381117286,16.61276094,161.14,161.08,3.776]
[1740381117476,6.206,161.12,161.08,9.9832]
[1740381118077,6.24755337,161.12,161.08,10.02799769]
[1740381118479,16.65431431,161.12,161.08,0.04479769]
[1740381118788,16.61276094,161.1,161.08,0.04479769]
[1740381119082,22.81956094,161.1,161.08,0.04479769]
[1740381119283,16.61276094,161.1,161.08,0.04479769]
[1740381119685,22.81936094,161.1,161.08,0.04479769]
[1740381119885,16.65431431,161.12,161.08,0.04479769]
[1740381120384,6.24745337,161.12,161.08,0.04479769]
[1740381120784,0.04155337,161.12,161.08,0.04479769]
[1740381121179,0.04155337,161.12,161.11,6.2061]
[1740381121380,8.34,161.17,161.08,16.65755863]
[1740381122189,8.34,161.17,161.13,6.205]
[1740381122687,6.2043,161.16,161.13,0.04652254]
[1740381123088,8.34,161.17,161.13,0.04652254]
[1740381123289,6.2047,161.15,161.13,0.04652254]
[1740381126092,8.34,161.17,161.13,0.04652254]
[1740381126093,22.81776094,161.14,161.13,0.04652254]
[1740381130293,6.205,161.14,161.13,0.04652254]
[1740381130494,22.81776094,161.14,161.13,0.04652254]
[1740381130793,6.2066,161.1,161.06,3.7938]
[1740381131196,6.2066,161.1,161.06,10.0015]
[1740381131592,16.61276094,161.13,161.06,3.7938]
[1740381131793,0.0467104,161.1,161.06,3.83875968]
[1740381132997,16.61276094,161.17,161.06,20.45152062]
[1740381133196,16.61276094,161.17,161.06,20.40656094]
[1740381134002,16.61276094,161.17,161.1,0.04471301]
[1740381134598,8.34,161.18,161.12,6.2057]
[1740381134998,6.2044,161.16,161.13,0.0425018]
[1740381136298,16.61276094,161.17,161.13,0.0425018]
[1740381136789,8.34,161.18,161.13,0.0425018]
[1740381136994,16.61276094,161.15,161.13,0.0425018]
[1740381137496,6.205,161.14,161.13,0.0425018]
[1740381137691,6.205,161.14,161.06,3.7938]
[1740381137692,16.61276094,161.15,161.06,3.7938]
[1740381137903,6.2066,161.1,161.06,3.7938]
[1740381138105,16.61276094,161.11,161.06,3.7938]
[1740381138299,16.61276094,161.11,161.05,1.8226]
[1740381138503,6.207,161.09,161.05,1.8226]
[1740381138697,6.207,161.09,161.05,8.07792776]
[1740381139005,6.24755172,161.09,161.05,8.07792776]
[1740381141102,6.24755172,161.09,161.06,6.2078]
[1740381141796,0.04055172,161.09,161.06,6.2078]
[1740381142101,16.61276094,161.14,161.05,1.86972776]
[1740381142306,16.61276094,161.14,161.05,1.8226]
[1740381142908,6.2065,161.11,161.07,6.2074]
[1740381143207,16.61276094,161.14,161.05,1.8226]
[1740381143404,6.2069,161.1,161.07,0.0462123]
[1740381144007,6.2069,161.1,161.07,6.2536123]
[1740381145204,6.2073,161.08,161.07,0.0462123]
[1740381146207,22.82006094,161.08,161.07,0.0462123]
[1740381149206,16.61276094,161.1,161.07,6.2537123]
[1740381149406,16.61276094,161.12,161.07,0.0462123]
[1740381149910,6.2067,161.1,161.07,0.0462123]
[1740381150717,6.2072,161.09,161.07,0.0462123]
[1740381151307,6.2073,161.08,161.07,0.0462123]
[1740381153316,22.81956094,161.1,161.07,6.2538123]
[1740381153718,16.61276094,161.1,161.08,6.2071]
[1740381153919,16.61276094,161.1,161.07,0.0462123]
[1740381154316,22.81886094,161.12,161.09,6.2068]
[1740381154821,22.81886094,161.12,161.09,6.25338852]
[1740381155115,16.61276094,161.14,161.09,0.04658852]
[1740381155520,6.2054,161.13,161.1,6.2063]
[1740381155721,16.61276094,161.14,161.09,0.04658852]
[1740381156126,22.81776094,161.14,161.11,6.2059]
[1740381156317,85.35358997,161.16,161.09,0.04658852]
[1740381156517,93.69358997,161.16,161.13,6.205]
[1740381157022,68.74082903,161.16,161.13,0.03958989]
[1740381157223,68.74082903,161.18,161.15,6.2043]
[1740381157622,68.74082903,161.18,161.13,0.03958989]
[1740381157822,74.94452903,161.18,161.14,6.2049]
[1740381158021,68.74082903,161.18,161.13,0.03958989]
[1740381158725,74.94452903,161.18,161.13,6.24488989]
[1740381160623,6.2041,161.17,161.13,0.03958989]
[1740381160822,68.74082903,161.18,161.13,0.03958989]
[1740381161020,6.204,161.17,161.13,0.03958989]
[1740381161420,24.95276094,161.2,161.13,0.03958989]
[1740381161621,6.2042,161.17,161.13,0.03958989]
[1740381161822,16.61276094,161.2,161.14,6.2048]
[1740381162028,16.61276094,161.2,161.13,0.03958989]
[1740381162429,6.2035,161.18,161.13,6.24468989]
[1740381162629,16.61276094,161.2,161.13,6.24468989]
[1740381162929,6.2039,161.17,161.13,6.24468989]
[1740381163426,16.61276094,161.18,161.13,0.03958989]
[1740381163627,16.61276094,161.16,161.13,0.03958989]
[1740381164029,6.2048,161.15,161.13,0.03958989]
[1740381164424,16.61276094,161.16,161.13,0.03958989]
[1740381164629,6.2046,161.15,161.13,0.03958989]
[1740381166326,6.205,161.14,161.13,0.03958989]
[1740381167431,22.81776094,161.14,161.13,0.03958989]
[1740381167630,6.2064,161.11,161.07,3.6854]
[1740381168534,6.2064,161.11,161.08,6.2072]
[1740381168831,0.0441108,161.11,161.07,3.72813045]
[1740381169631,0.0441108,161.11,161.09,6.2066]
[1740381169930,0.0441108,161.11,161.07,3.72813045]
[1740381170135,0.0441108,161.11,161.1,6.2065]
[1740381171633,0.0441108,161.11,161.09,6.2067]
[1740381172237,6.2503108,161.11,161.08,6.2071]
[1740381173938,6.2503108,161.11,161.09,6.2068]
[1740381177634,0.0441108,161.11,161.09,6.2068]
[1740381178042,0.0441108,161.11,161.08,6.2072]
[1740381178238,6.2066,161.1,161.07,0.04273045]
[1740381178437,0.0441108,161.11,161.07,0.04273045]
[1740381179444,0.0441108,161.11,161.07,6.25043045]
[1740381179744,6.2067,161.1,161.07,6.25043045]
[1740381180238,0.0441108,161.11,161.07,0.04273045]
[1740381180837,6.2504108,161.11,161.08,6.2071]
[1740381181741,6.2073,161.08,161.07,0.04273045]
[1740381181939,0.0441108,161.11,161.07,0.04273045]
[1740381183444,6.2066,161.1,161.07,0.04273045]
[1740381183640,10.65913609,161.09,161.07,0.04273045]
[1740381184149,10.65913609,161.09,161.07,6.25023045]
[1740381184941,10.65913609,161.09,161.08,6.2073]
[1740381186147,16.86633609,161.09,161.07,0.04273045]
[1740381186346,10.65913609,161.09,161.07,0.04273045]
[1740381187637,10.65913609,161.09,161.08,6.2073]
[1740381188037,10.70324689,161.11,161.07,0.04273045]
[1740381188242,0.0441108,161.11,161.1,6.2065]
[1740381191052,10.70324689,161.11,161.08,6.2072]
[1740381191253,10.65913609,161.09,161.08,6.2072]
[1740381192250,16.90934689,161.11,161.07,0.04273045]
[1740381192450,10.70324689,161.11,161.07,0.04273045]
[1740381193152,16.90944689,161.11,161.08,6.207]
[1740381193554,6.2067,161.1,161.08,6.207]
[1740381193853,10.70324689,161.11,161.08,6.207]
[1740381194448,16.90964689,161.11,161.08,6.207]
[1740381194854,6.2066,161.1,161.08,6.207]
[1740381195247,10.65913609,161.09,161.07,0.04273045]
[1740381195645,6.2073,161.08,161.07,0.04273045]
[1740381196148,10.65913609,161.09,161.07,0.04273045]
[1740381196352,10.70324689,161.11,161.07,0.04273045]
[1740381196854,10.70324689,161.11,161.1,6.2065]
[1740381197055,0.0441108,161.11,161.1,6.2065]
[1740381198054,68.74082903,161.16,161.09,10.65913609]
[1740381198254,68.74082903,161.16,161.11,10.65913609]
[1740381198455,68.74082903,161.16,161.13,10.65913609]
[1740381198651,68.74082903,161.16,161.15,6.2046]
[1740381201155,69.44312448,161.21,161.17,6.2038]
[1740381201156,16.86143609,161.21,161.17,6.2038]
[1740381201554,16.86143609,161.21,161.17,6.24527717]
[1740381201751,16.6327798,161.18,161.01,16.17004555]
[1740381202051,16.6327798,161.1,161.0,35.54640005]
[1740381202255,8.34,161.09,161.0,35.54640005]
[1740381202557,8.34,161.09,161.02,16.6327798]
[1740381202852,8.34,161.09,161.04,6.2086]
[1740381203062,0.04147717,161.07,161.04,6.25518696]
[1740381203259,0.04147717,161.07,161.06,6.2081]
[1740381205256,16.6327798,161.15,161.07,6.2076]
[1740381205257,14.5459,161.12,161.07,6.2076]
[1740381206156,6.2059,161.12,161.07,6.2076]
[1740381206352,6.2059,161.12,161.08,0.03906288]
[1740381207359,6.2062,161.11,161.08,0.03906288]
[1740381209851,6.2062,161.11,161.08,6.24636288]
[1740381210455,6.2069,161.09,161.08,0.03906288]
[1740381211555,6.2067,161.1,161.08,0.03906288]
[1740381212255,16.6327798,161.13,161.08,0.03906288]
[1740381212453,6.206,161.12,161.08,0.03906288]
[1740381212660,16.6327798,161.13,161.08,0.03906288]
[1740381214452,6.2069,161.1,161.08,0.03906288]
[1740381215154,6.2069,161.09,161.08,0.03906288]
[1740381217858,6.2067,161.1,161.08,0.03906288]
[1740381220261,16.6327798,161.11,161.08,0.03906288]
[1740381220461,6.2069,161.09,161.08,0.03906288]
[1740381221464,22.8396798,161.09,161.08,0.03906288]
[1740381222260,16.6327798,161.09,161.08,0.03906288]
[1740381222663,16.6327798,161.11,161.08,0.03906288]
[1740381222966,16.6327798,161.11,161.09,6.2066]
[1740381223164,24.9727798,161.11,161.09,6.2066]
[1740381223665,10.65890928,161.1,161.09,6.2066]
[1740381225162,10.65890928,161.1,161.08,0.03906288]
[1740381225366,10.65890928,161.1,161.08,6.24626288]
[1740381226067,16.86550928,161.1,161.08,6.24626288]
[1740381227368,10.65890928,161.1,161.08,0.03906288]
[1740381227566,6.2069,161.09,161.08,0.03906288]
[1740381229565,6.2077,161.08,160.92,260.05607422]
[1740381229767,10.65890928,161.07,161.0,10.65890928]
[1740381230268,10.65890928,161.07,161.05,6.2081]
[1740381230770,10.65890928,161.07,161.06,6.2081]
[1740381231170,10.65890928,161.07,161.04,0.04224554]
[1740381231376,10.69797216,161.08,161.04,0.04224554]
[1740381231679,0.03906288,161.08,161.04,0.04224554]
[1740381231874,0.03906288,161.08,161.07,6.2077]
[1740381233065,10.65890928,161.13,161.07,10.65890928]
[1740381233269,68.74082903,161.14,161.09,10.65890928]
[1740381233869,68.74082903,161.14,161.13,6.2054]
[1740381233870,58.47392903,161.14,161.13,6.2054]
[1740381234470,73.48773864,161.16,161.15,6.2046]
[1740381234976,73.48773864,161.16,161.12,0.04537696]
[1740381235176,73.48773864,161.16,161.13,6.2053]
[1740381235670,10.65890928,161.15,161.12,0.04537696]
[1740381235875,10.65890928,161.13,161.12,0.04537696]
[1740381237582,16.65113601,161.13,161.12,0.04537696]
[1740381238875,22.85653601,161.13,161.12,0.04537696]